fUST/lending_fUST_20250423
["ID","MTS","AMOUNT","RATE_DAILY","PERIOD"]
[358732352,1745405446766,-506.70808895,0.00020188,2]
[358732354,1745405446775,-500.0,0.00020188,2]
[358732356,1745405446783,-500.0,0.00020188,2]
[358732358,1745405446792,-500.0,0.00020188,2]
[358732360,1745405446802,-500.0,0.00020188,2]
[358732362,1745405446814,-500.0,0.00020188,2]
[358732363,1745405446822,-510.75952544,0.00020188,2]
[358732365,1745405446831,-500.0,0.00020188,2]
[358732367,1745405446841,-500.0,0.00020188,2]
[358732369,1745405446851,-500.0,0.00020188,2]
[358732371,1745405446859,-500.0,0.00020188,2]
[358732373,1745405446868,-500.0,0.00020188,2]
[358732375,1745405446877,-500.0,0.00020188,2]
[358732377,1745405446887,-500.0,0.00020188,2]
[358732380,1745405446898,-509.47946963,0.00020188,2]
[358732381,1745405446907,-500.0,0.00020188,2]
[358732383,1745405446916,-500.0,0.00020188,2]
[358732384,1745405446926,-500.0,0.00020188,2]
[358732385,1745405446936,-500.0,0.00020188,2]
[358732386,1745405446945,-500.0,0.00020188,2]
[358732387,1745405446954,-500.0,0.00020188,2]
[358732388,1745405446964,-500.0,0.00020188,2]
[358732389,1745405446974,-500.0,0.00020188,2]
[358732390,1745405446984,-500.0,0.00020188,2]
[358732391,1745405446993,-500.0,0.00020188,2]
[358732392,1745405447003,-500.0,0.00020188,2]
[358732393,1745405447013,-500.0,0.00020188,2]
[358732394,1745405447022,-500.0,0.00020188,2]
[358732395,1745405447032,-500.0,0.00020188,2]
[358732396,1745405447041,-500.0,0.00020188,2]
[358732397,1745405447051,-504.9341442,0.00020188,2]
[358732398,1745405447061,-500.0,0.00020188,2]
[358732399,1745405447070,-500.0,0.00020188,2]
[358732400,1745405447080,-386.36876372,0.00020188,2]
[358732401,1745405447090,-500.0,0.00020188,2]
[358732402,1745405447099,-500.0,0.00020188,2]
[358732403,1745405447108,-500.0,0.00020188,2]
[358732404,1745405447118,-500.0,0.00020188,2]
[358732405,1745405447128,-500.0,0.00020188,2]
[358732406,1745405447137,-500.0,0.00020188,2]
[358732407,1745405447147,-500.0,0.00020188,2]
[358732408,1745405447156,-500.0,0.00020188,2]
[358732409,1745405447167,-500.0,0.00020188,2]
[358732410,1745405447177,-500.0,0.00020188,2]
[358732411,1745405447187,-316.64,0.00020188,2]
[358732412,1745405447196,-500.0,0.00020188,2]
[358732413,1745405447205,-500.0,0.00020188,2]
[358732414,1745405447215,-1738.69,0.00020188,2]
[358732415,1745405447225,-500.0,0.00020188,2]
[358732416,1745405447234,-500.0,0.00020188,2]
[358732417,1745405447243,-500.0,0.00020188,2]
[358732418,1745405447253,-500.0,0.00020188,2]
[358732419,1745405447262,-500.0,0.00020188,2]
[358732420,1745405447271,-500.0,0.00020188,2]
[358732421,1745405447281,-500.0,0.00020188,2]
[358732422,1745405447290,-500.0,0.00020188,2]
[358732423,1745405447300,-500.0,0.00020188,2]
[358732424,1745405447310,-500.0,0.00020188,2]
[358732425,1745405447319,-500.0,0.00020188,2]
[358732426,1745405447328,-500.0,0.00020188,2]
[358732427,1745405447338,-500.0,0.00020188,2]
[358732428,1745405447347,-500.0,0.00020188,2]
[358732429,1745405447356,-500.0,0.00020188,2]
[358732430,1745405447365,-500.0,0.00020188,2]
[358732431,1745405447375,-500.0,0.00020188,2]
[358732432,1745405447384,-500.0,0.00020188,2]
[358732433,1745405447393,-500.0,0.00020188,2]
[358732434,1745405447403,-3235.53,0.00020188,2]
[358732435,1745405447555,-500.0,0.00020188,2]
[358732436,1745405447565,-500.0,0.00020188,2]
[358732437,1745405447574,-500.0,0.00020188,2]
[358732438,1745405447583,-500.0,0.00020188,2]
[358732439,1745405447592,-500.0,0.00020188,2]
[358732440,1745405447601,-500.0,0.00020188,2]
[358732441,1745405447610,-500.0,0.00020188,2]
[358732442,1745405447619,-500.0,0.00020188,2]
[358732443,1745405447629,-500.0,0.00020188,2]
[358732444,1745405447638,-500.0,0.00020188,2]
[358732445,1745405447647,-540.14215305,0.00020188,2]
[358732446,1745405447656,-500.0,0.00020188,2]
[358732447,1745405447666,-507.21516964,0.00020188,2]
[358732448,1745405447676,-500.0,0.00020188,2]
[358732449,1745405447685,-500.0,0.00020188,2]
[358732450,1745405447694,-579.97,0.00020188,2]
[358732451,1745405447703,-500.0,0.00020188,2]
[358732452,1745405447712,-500.0,0.00020188,2]
[358732453,1745405447721,-506.20796331,0.00020188,2]
[358732454,1745405447730,-519.73,0.00020188,2]
[358732455,1745405447739,-151.0,0.00020189,2]
[358732456,1745405447748,-151.0,0.00020189,2]
[358732457,1745405447758,-151.0,0.00020189,2]
[358732458,1745405447767,-198.78586101,0.00020189,2]
[358732459,1745405447776,-151.0,0.00020189,2]
[358732460,1745405447786,-151.0,0.00020189,2]
[358732461,1745405447795,-151.0,0.00020189,2]
[358732462,1745405447807,-151.44473924,0.00020189,2]
[358732463,1745405447816,-151.0,0.00020189,2]
[358732464,1745405447824,-151.0,0.00020189,2]
[358732465,1745405447834,-153.13690097,0.00020189,2]
[358732466,1745405447845,-151.0,0.00020189,2]
[358732467,1745405447854,-151.51901017,0.00020189,2]
[358732468,1745405447863,-151.0,0.00020189,2]
[358732469,1745405447872,-204.76105359,0.00020189,2]
[358732470,1745405447883,-151.0,0.00020189,2]
[358732471,1745405447893,-154.69051424,0.00020189,2]
[358732472,1745405447903,-151.0,0.00020189,2]
[358732473,1745405447913,-151.0,0.00020189,2]
[358732474,1745405447923,-151.0,0.00020189,2]
[358732475,1745405447933,-1884.2,0.0002019,2]
[358732476,1745405447942,-1884.2,0.0002019,2]
[358732477,1745405447953,-1884.2,0.0002019,2]
[358732478,1745405447963,-1884.2,0.0002019,2]
[358732479,1745405447972,-1884.34209215,0.0002019,2]
[358732480,1745405447982,-1738.69,0.0002019,2]
[358732481,1745405447992,-1738.69,0.0002019,2]
[358732482,1745405448001,-1738.69,0.0002019,2]
[358732483,1745405448011,-1738.69,0.0002019,2]
[358732484,1745405448021,-1738.8411171,0.0002019,2]
[358732485,1745405448031,-151.0,0.00020191,2]
[358732486,1745405448040,-500.0,0.00020191,2]
[358732487,1745405448049,-151.0,0.00020191,2]
[358732488,1745405448059,-502.81229629,0.00020191,2]
[358732489,1745405448068,-375.43719084,0.00020191,2]
[358732490,1745405448078,-500.0,0.00020191,2]
[358732491,1745405448088,-500.0,0.00020191,2]
[358732492,1745405448097,-500.0,0.00020191,2]
[358732493,1745405448107,-511.22809179,0.00020191,2]
[358732494,1745405448117,-500.0,0.00020191,2]
[358732495,1745405448126,-500.0,0.00020191,2]
[358732496,1745405448135,-500.0,0.00020191,2]
[358732497,1745405448145,-500.0,0.00020191,2]
[358732498,1745405448154,-500.0,0.00020191,2]
[358732499,1745405448164,-605.18232363,0.00020191,2]
[358732500,1745405448175,-500.0,0.00020191,2]
[358732501,1745405448184,-500.0,0.00020191,2]
[358732502,1745405448194,-125.48728454,0.00020191,2]
[358732503,1745405448377,-374.51271546,0.00020191,2]
[358732504,1745405448387,-500.0,0.00020191,2]
[358732505,1745405448396,-500.0,0.00020191,2]
[358732506,1745405448406,-502.6053553,0.00020191,2]
[358732507,1745405448415,-500.0,0.00020191,2]
[358732508,1745405448426,-500.0,0.00020191,2]
[358732509,1745405448436,-507.10692706,0.00020191,2]
[358732510,1745405448446,-500.0,0.00020191,2]
[358732511,1745405448455,-500.0,0.00020191,2]
[358732512,1745405448465,-500.0,0.00020191,2]
[358732513,1745405448474,-500.0,0.00020191,2]
[358732514,1745405448484,-500.0,0.00020191,2]
[358732515,1745405448493,-500.0,0.00020191,2]
[358732516,1745405448505,-500.0,0.00020191,2]
[358732517,1745405448514,-536.28286628,0.00020191,2]
[358732518,1745405448523,-500.0,0.00020191,2]
[358732519,1745405448532,-604.33909034,0.00020191,2]
[358732520,1745405448543,-500.0,0.00020191,2]
[358732521,1745405448553,-500.0,0.00020191,2]
[358732522,1745405448562,-500.0,0.00020191,2]
[358732523,1745405448572,-500.0,0.00020191,2]
[358732524,1745405448582,-500.0,0.00020191,2]
[358732525,1745405448591,-500.0,0.00020191,2]
[358732526,1745405448601,-500.0,0.00020191,2]
[358732527,1745405448610,-565.66675419,0.00020191,2]
[358732528,1745405448619,-500.0,0.00020191,2]
[358732529,1745405448628,-500.0,0.00020191,2]
[358732530,1745405448638,-500.0,0.00020191,2]
[358732531,1745405448648,-500.0,0.00020191,2]
[358732532,1745405448657,-500.0,0.00020191,2]
[358732533,1745405448668,-531.80803911,0.00020191,2]
[358732534,1745405448677,-474.77744534,0.00020191,2]
[358732535,1745405448686,-500.0,0.00020191,2]
[358732536,1745405448695,-500.0,0.00020191,2]
[358732537,1745405448705,-500.0,0.00020191,2]
[358732538,1745405448714,-500.0,0.00020191,2]
[358732539,1745405448723,-500.0,0.00020191,2]
[358732540,1745405448732,-507.01200798,0.00020191,2]
[358732541,1745405448742,-500.0,0.00020191,2]
[358732542,1745405448752,-305.77292633,0.00020191,2]
[358732543,1745405449527,-209.23651307,0.00019908,2]
[358732544,1745405449633,-160.35266277,0.00019908,2]
[358732545,1745405449643,-158.44004075,0.00019908,2]
[358732546,1745405449653,-500.0,0.00019909,2]
[358732547,1745405449662,-500.0,0.00019909,2]
[358732548,1745405449672,-500.0,0.0001991,2]
[358732549,1745405449682,-500.0,0.00019911,2]
[358732550,1745405449691,-500.0,0.00019911,2]
[358732551,1745405449701,-500.0,0.00019911,2]
[358732552,1745405449710,-500.0,0.00019911,2]
[358732553,1745405449720,-500.0,0.00019911,2]
[358732554,1745405449729,-399.58595253,0.00019914,2]
[358732555,1745405449746,-100.41404747,0.00019914,2]
[358732556,1745405449756,-362.68,0.00020183,2]
[358732557,1745405449766,-500.0,0.00020185,2]
[358732558,1745405449776,-500.0,0.00020185,2]
[358732559,1745405449785,-500.0,0.00020188,2]
[358732560,1745405449795,-194.22707367,0.00020191,2]
[358732561,1745405449805,-500.0,0.00020191,2]
[358732562,1745405449815,-500.0,0.00020191,2]
[358732563,1745405449824,-500.0,0.00020191,2]
[358732564,1745405449834,-500.0,0.00020191,2]
[358732565,1745405449843,-500.0,0.00020191,2]
[358732566,1745405449852,-500.0,0.00020191,2]
[358732567,1745405449861,-500.0,0.00020191,2]
[358732568,1745405449871,-500.0,0.00020191,2]
[358732569,1745405449881,-500.0,0.00020191,2]
[358732570,1745405449890,-500.0,0.00020191,2]
[358732571,1745405449900,-500.0,0.00020191,2]
[358732572,1745405449909,-500.0,0.00020191,2]
[358732573,1745405449919,-500.0,0.00020191,2]
[358732574,1745405449928,-369.03984278,0.00020191,2]
[358732575,1745405449938,-500.0,0.00020191,2]
[358732576,1745405449947,-500.0,0.00020191,2]
[358732577,1745405449957,-500.0,0.00020191,2]
[358732578,1745405449967,-502.62021289,0.00020191,2]
[358732579,1745405449976,-500.0,0.00020191,2]
[358732580,1745405449985,-500.0,0.00020191,2]
[358732581,1745405449995,-501.24081994,0.00020191,2]
[358732582,1745405450004,-500.0,0.00020191,2]
[358732583,1745405450015,-500.0,0.00020191,2]
[358732584,1745405450025,-500.0,0.00020191,2]
[358732585,1745405450034,-500.0,0.00020191,2]
[358732586,1745405450043,-500.0,0.00020191,2]
[358732587,1745405450052,-500.0,0.00020191,2]
[358732588,1745405450061,-500.0,0.00020191,2]
[358732589,1745405450071,-500.0,0.00020191,2]
[358732590,1745405450080,-428.09256723,0.00020191,2]
[358732591,1745405450089,-500.0,0.00020191,2]
[358732592,1745405450099,-500.0,0.00020191,2]
[358732593,1745405450108,-500.0,0.00020191,2]
[358732594,1745405450118,-500.0,0.00020191,2]
[358732595,1745405450128,-500.0,0.00020191,2]
[358732596,1745405450139,-642.22112678,0.00020191,2]
[358732597,1745405450149,-500.0,0.00020191,2]
[358732598,1745405450158,-500.0,0.00020191,2]
[358732599,1745405450168,-500.0,0.00020191,2]
[358732600,1745405450178,-500.0,0.00020191,2]
[358732601,1745405450336,-503.99247441,0.00020191,2]
[358732602,1745405450347,-500.0,0.00020191,2]
[358732603,1745405450356,-640.90874238,0.00020191,2]
[358732604,1745405450365,-500.0,0.00020191,2]
[358732605,1745405450374,-279.078,0.00020191,2]
[358732606,1745405450384,-500.0,0.00020191,2]
[358732607,1745405450393,-500.0,0.00020191,2]
[358732608,1745405450402,-500.0,0.00020191,2]
[358732609,1745405450412,-521.20749741,0.00020191,2]
[358732610,1745405450421,-500.0,0.00020191,2]
[358732611,1745405450431,-500.0,0.00020191,2]
[358732612,1745405450440,-500.0,0.00020191,2]
[358732613,1745405450449,-500.0,0.00020191,2]
[358732614,1745405450458,-500.0,0.00020191,2]
[358732615,1745405450467,-500.0,0.00020191,2]
[358732616,1745405450476,-500.0,0.00020191,2]
[358732617,1745405450486,-500.0,0.00020191,2]
[358732618,1745405450495,-500.0,0.00020191,2]
[358732619,1745405450504,-500.0,0.00020191,2]
[358732620,1745405450514,-500.0,0.00020191,2]
[358732621,1745405450523,-500.0,0.00020191,2]
[358732622,1745405450534,-500.0,0.00020191,2]
[358732623,1745405450543,-550.61,0.00020191,2]
[358732624,1745405450552,-500.0,0.00020191,2]
[358732625,1745405450562,-500.0,0.00020191,2]
[358732626,1745405450571,-500.0,0.00020191,2]
[358732627,1745405450580,-500.0,0.00020191,2]
[358732628,1745405450589,-500.0,0.00020191,2]
[358732629,1745405450598,-500.0,0.00020191,2]
[358732630,1745405450607,-500.0,0.00020191,2]
[358732631,1745405450617,-500.0,0.00020191,2]
[358732632,1745405450627,-500.0,0.00020191,2]
[358732633,1745405450636,-500.0,0.00020191,2]
[358732634,1745405450645,-500.0,0.00020191,2]
[358732635,1745405450654,-505.30203898,0.00020191,2]
[358732636,1745405450663,-500.0,0.00020191,2]
[358732637,1745405450674,-500.0,0.00020191,2]
[358732638,1745405450683,-500.0,0.00020191,2]
[358732639,1745405450692,-500.0,0.00020191,2]
[358732640,1745405450701,-500.0,0.00020191,2]
[358732641,1745405450710,-500.0,0.00020191,2]
[358732642,1745405450720,-504.13477604,0.00020191,2]
[358732643,1745405450730,-500.0,0.00020191,2]
[358732644,1745405450739,-446.58455044,0.00020191,2]
[358732645,1745405450908,-382.748628,0.00019911,2]
[358732646,1745405450921,-117.251372,0.00019911,2]
[358732647,1745405450931,-500.0,0.00019911,2]
[358732648,1745405450941,-233.11,0.00020184,2]
[358732649,1745405450951,-500.0,0.00020185,2]
[358732650,1745405450960,-500.0,0.00020185,2]
[358732651,1745405450969,-53.41544956,0.00020191,2]
[358732652,1745405450978,-500.0,0.00020191,2]
[358732653,1745405450988,-500.0,0.00020191,2]
[358732654,1745405450998,-500.0,0.00020191,2]
[358732655,1745405451007,-1000.0,0.00020191,2]
[358732656,1745405451016,-500.0,0.00020191,2]
[358732657,1745405451025,-500.0,0.00020191,2]
[358732658,1745405451036,-500.0,0.00020191,2]
[358732659,1745405451046,-500.0,0.00020191,2]
[358732660,1745405451055,-500.0,0.00020191,2]
[358732661,1745405451064,-564.51582589,0.00020191,2]
[358732662,1745405451074,-500.0,0.00020191,2]
[358732663,1745405451083,-500.0,0.00020191,2]
[358732664,1745405451093,-500.0,0.00020191,2]
[358732665,1745405451102,-500.0,0.00020191,2]
[358732666,1745405451112,-500.0,0.00020191,2]
[358732667,1745405451121,-500.0,0.00020191,2]
[358732668,1745405451131,-500.0,0.00020191,2]
[358732669,1745405451140,-501.17847287,0.00020191,2]
[358732670,1745405451150,-504.72968403,0.00020191,2]
[358732671,1745405451160,-500.0,0.00020191,2]
[358732672,1745405451170,-500.0,0.00020191,2]
[358732673,1745405451179,-500.0,0.00020191,2]
[358732674,1745405451190,-500.0,0.00020191,2]
[358732675,1745405451199,-290.45531093,0.00020191,2]
[358732676,1745405451209,-500.0,0.00020191,2]
[358732677,1745405451217,-500.0,0.00020191,2]
[358732678,1745405451229,-500.0,0.00020191,2]
[358732679,1745405451238,-500.0,0.00020191,2]
[358732680,1745405451247,-484.44793066,0.00020191,2]
[358732681,1745405451256,-475.55304791,0.00020191,2]
[358732682,1745405452108,-330.38208805,0.00019908,2]
[358732683,1745405455457,-152.0,0.00019908,2]
[358732684,1745405460372,-23.53359094,0.00019908,2]
[358732685,1745405460395,-150.90408628,0.00019908,2]
[358732686,1745405470689,-291.90460042,0.00019908,2]
[358732687,1745405478988,-57.1913133,0.00019908,2]
[358732688,1745405479011,-124.96997255,0.00019908,2]
[358732689,1745405483629,-202.91228764,0.00019908,2]
[358732690,1745405487240,-94.08771236,0.00019908,2]
[358732691,1745405487270,-199.94702426,0.00019908,2]
[358732692,1745405492604,-197.83608001,0.00019908,2]
[358732693,1745405497267,-102.21689573,0.00019908,2]
[358732694,1745405497300,-49.78310427,0.00019908,2]
[358732695,1745405516776,-160.0,0.00019908,2]
[358732696,1745405521619,-225.95394749,0.00019908,2]
[358732697,1745405556044,-202.85854791,0.00019907,2]
[358732698,1745405583274,-166.61976,0.00018911,2]
[358732699,1745405583298,-114.1146603,0.00019908,2]
[358732701,1745405604864,-158.37060246,0.000189,2]
[358732703,1745405643527,-57.82012004,0.000189,2]
[358732704,1745405643551,-113.87305677,0.00019907,2]
[358732706,1745405701933,-164.99861781,0.00019908,2]
[358732707,1745405706836,-199.9956401,0.00019907,2]
[358732708,1745405748508,-100.0043599,0.00019907,2]
[358732709,1745405748533,-200.0,0.00019907,2]
[358732710,1745405762013,-233.8571398,0.00019907,2]
[358732711,1745405767261,-183.8459,0.00019906,2]
[358732712,1745405773121,-116.1541,0.00019906,2]
[358732713,1745405773164,-43.96948261,0.00019907,2]
[358732714,1745405781618,-150.11943447,0.00019907,2]
[358732715,1745405785507,-197.88056553,0.00019907,2]
[358732716,1745405788877,-74.17337759,0.00019907,2]
[358732717,1745405788906,-121.80662241,0.00019907,2]
[358732718,1745405793906,-152.0,0.00019907,2]
[358732719,1745405806171,-266.04171689,0.00019907,2]
[358732721,1745405811699,-152.0,0.00018911,2]
[358732722,1745405822844,-300.0,0.0001891,2]
[358732726,1745405884016,-76.0332419,0.0001891,2]
[358732727,1745405884046,-14.4520318,0.00018911,2]
[358732728,1745405884086,-76.0802087,0.00019906,2]
[358732733,1745405906147,-178.45902422,0.000189,2]
[358732736,1745405921533,-49.64017713,0.000189,2]
[358732737,1745405921558,-700.39535212,0.00019811,2]
[358732739,1745406096393,-178.45902422,0.0001881,2]
[358732740,1745406096420,-108.21136158,0.00018906,2]
[358732741,1745406099301,-24791.78863842,0.00018906,2]
[358732742,1745406099323,-151.21136158,0.00018907,2]
[358732743,1745406109600,-195.98,0.00018897,2]
[358732744,1745406147353,-8.55018902,0.00018907,2]
[358732745,1745406147376,-241.44981098,0.00018907,2]
[358732752,1745406207804,-152.06613423,0.000189,2]
[358732762,1745406266601,-8.55018902,0.00018907,2]
[358732763,1745406266627,-316.78700883,0.00019807,2]
[358732764,1745406292475,843.0,0.00018,2]
[358732767,1745406445999,-419.375,0.00018897,2]
[358732769,1745406481003,-181.477272,0.00018897,2]
[358732840,1745406631817,-816.97693339,0.00019806,2]
[358732841,1745406631827,-92.93229242,0.00019811,2]
[358732842,1745406631839,-175.7805647,0.00019811,2]
[358732844,1745406631848,-244.71241371,0.00019873,2]
[358732845,1745406631860,-278.80680054,0.00019873,2]
[358732847,1745406631872,-293.4577191,0.00019873,2]
[358732848,1745406631882,-151.0,0.00019894,2]
[358732849,1745406631892,-102.04790903,0.00019901,2]
[358732850,1745406631908,-266.88734608,0.00019901,2]
[358732851,1745406631918,-300.0,0.00019902,2]
[358732852,1745406631927,-279.69792362,0.00019902,2]
[358732853,1745406631939,-620.30207638,0.00019902,2]
[358732854,1745406631949,-355.7770018,0.00019903,2]
[358732855,1745406631967,-145.17671227,0.00019903,2]
[358732856,1745406631977,-500.0,0.00019903,2]
[358732857,1745406631987,-500.0,0.00019903,2]
[358732858,1745406631997,-500.0,0.00019903,2]
[358732859,1745406632007,-500.0,0.00019903,2]
[358732860,1745406632017,-500.0,0.00019903,2]
[358732861,1745406632027,-240.49053203,0.00019903,2]
[358732862,1745406632037,-500.0,0.00019903,2]
[358732863,1745406632047,-500.0,0.00019903,2]
[358732864,1745406632057,-500.0,0.00019903,2]
[358732865,1745406632067,-500.0,0.00019903,2]
[358732866,1745406632076,-500.0,0.00019903,2]
[358732867,1745406632086,-304.77925611,0.00019903,2]
[358732868,1745406632096,-500.0,0.00019903,2]
[358732869,1745406632106,-500.0,0.00019903,2]
[358732870,1745406632115,-381.47384732,0.00019903,2]
[358732871,1745406632126,-500.0,0.00019903,2]
[358732872,1745406632136,-500.0,0.00019903,2]
[358732873,1745406632146,-500.0,0.00019903,2]
[358732874,1745406632159,-500.0,0.00019903,2]
[358732875,1745406632173,-500.0,0.00019903,2]
[358732876,1745406632183,-480.34605272,0.00019903,2]
[358732877,1745406632192,-559.59674718,0.00019903,2]
[358732878,1745406632203,-500.0,0.00019903,2]
[358732879,1745406632212,-500.0,0.00019903,2]
[358732880,1745406632222,-500.0,0.00019904,2]
[358732881,1745406632233,-500.0,0.00019904,2]
[358732882,1745406632243,-500.0,0.00019904,2]
[358732883,1745406632252,-500.0,0.00019904,2]
[358732884,1745406632262,-500.0,0.00019904,2]
[358732885,1745406632272,-502.8575463,0.00019904,2]
[358732886,1745406632281,-500.0,0.00019904,2]
[358732887,1745406632292,-1233.74,0.00019904,2]
[358732888,1745406632302,-500.0,0.00019904,2]
[358732889,1745406632532,-500.0,0.00019904,2]
[358732890,1745406632542,-505.49845983,0.00019904,2]
[358732891,1745406632552,-500.0,0.00019904,2]
[358732892,1745406632561,-500.0,0.00019904,2]
[358732893,1745406632570,-503.87226997,0.00019904,2]
[358732894,1745406632579,-500.0,0.00019904,2]
[358732895,1745406632588,-500.0,0.00019904,2]
[358732896,1745406632598,-500.0,0.00019904,2]
[358732897,1745406632607,-500.0,0.00019904,2]
[358732898,1745406632616,-627.51004999,0.00019904,2]
[358732899,1745406632626,-1063.73,0.00019904,2]
[358732900,1745406632635,-500.0,0.00019904,2]
[358732901,1745406632644,-500.0,0.00019904,2]
[358732902,1745406632654,-500.0,0.00019904,2]
[358732903,1745406632663,-500.0,0.00019904,2]
[358732904,1745406632672,-500.0,0.00019904,2]
[358732905,1745406632681,-500.0,0.00019904,2]
[358732906,1745406632690,-500.0,0.00019904,2]
[358732907,1745406632700,-500.0,0.00019904,2]
[358732908,1745406632710,-500.0,0.00019904,2]
[358732909,1745406632719,-1565.82,0.00019904,2]
[358732910,1745406632729,-500.0,0.00019904,2]
[358732911,1745406632738,-500.0,0.00019904,2]
[358732912,1745406632747,-500.0,0.00019904,2]
[358732913,1745406632756,-500.0,0.00019904,2]
[358732914,1745406632766,-501.0658255,0.00019904,2]
[358732915,1745406632775,-500.0,0.00019904,2]
[358732916,1745406632784,-2600.73,0.00019904,2]
[358732917,1745406632794,-500.0,0.00019904,2]
[358732918,1745406632803,-500.0,0.00019904,2]
[358732919,1745406632813,-500.0,0.00019904,2]
[358732920,1745406632823,-500.0,0.00019904,2]
[358732921,1745406632832,-500.0,0.00019904,2]
[358732922,1745406632841,-500.0,0.00019904,2]
[358732923,1745406632851,-500.0,0.00019904,2]
[358732924,1745406632860,-500.0,0.00019904,2]
[358732925,1745406632869,-500.0,0.00019904,2]
[358732926,1745406632879,-6139.88,0.00019904,2]
[358732927,1745406632888,-500.0,0.00019904,2]
[358732928,1745406632897,-3428.99,0.00019904,2]
[358732929,1745406632907,-508.37058812,0.00019904,2]
[358732965,1745406637835,-500.0,0.00019903,2]
[358732967,1745406637844,-500.0,0.00019903,2]
[358732969,1745406637854,-102.01941188,0.00019904,2]
[358732971,1745406637864,-500.0,0.00019904,2]
[358732973,1745406637873,-500.0,0.00019904,2]
[358732975,1745406637882,-500.0,0.00019904,2]
[358732977,1745406637891,-500.0,0.00019904,2]
[358732978,1745406637900,-500.0,0.00019904,2]
[358732980,1745406637909,-500.0,0.00019904,2]
[358732982,1745406637919,-500.0,0.00019904,2]
[358732984,1745406637928,-582.2,0.00019904,2]
[358732986,1745406637937,-500.0,0.00019904,2]
[358732988,1745406637946,-500.0,0.00019904,2]
[358732991,1745406637955,-2287.57,0.00019904,2]
[358732994,1745406637964,-500.0,0.00019904,2]
[358732997,1745406637973,-500.0,0.00019904,2]
[358733000,1745406637983,-500.0,0.00019905,2]
[358733003,1745406637992,-500.0,0.00019905,2]
[358733004,1745406638002,-500.0,0.00019905,2]
[358733007,1745406638011,-500.0,0.00019905,2]
[358733010,1745406638020,-507.33,0.00019905,2]
[358733013,1745406638029,-500.0,0.00019905,2]
[358733016,1745406638039,-500.0,0.00019905,2]
[358733019,1745406638048,-500.0,0.00019905,2]
[358733022,1745406638057,-500.0,0.00019905,2]
[358733024,1745406638066,-500.0,0.00019905,2]
[358733026,1745406638076,-500.0,0.00019905,2]
[358733028,1745406638086,-500.0,0.00019905,2]
[358733030,1745406638097,-500.0,0.00019905,2]
[358733032,1745406638106,-500.0,0.00019905,2]
[358733034,1745406638115,-1663.21,0.00019905,2]
[358733036,1745406638124,-1663.21,0.00019905,2]
[358733037,1745406638133,-1663.21,0.00019905,2]
[358733039,1745406638143,-1663.21,0.00019905,2]
[358733041,1745406638153,-1663.21,0.00019905,2]
[358733043,1745406638165,-510.64252156,0.00019905,2]
[358733045,1745406638174,-500.0,0.00019905,2]
[358733047,1745406638183,-500.0,0.00019905,2]
[358733049,1745406638192,-500.0,0.00019905,2]
[358733051,1745406638203,-500.0,0.00019905,2]
[358733052,1745406638213,-500.0,0.00019905,2]